Cogmind - Beta 15 *** ADVENTURER MODE // 2025.09.02 @ 21:54:18 Player: PixelChip Result: Core destroyed Performance ------------- Evolutions (1) 500 Regions Visited (3) 600 Robots Destroyed (84) 420 Value Destroyed (1693) 1693 Prototype IDs (0) 0 Alien Tech Used (0) 0 Bonus (0) 0 TOTAL SCORE: 3213 Bonus ------- None Cogmind --------- Core Integrity 0/400 Matter 300/300 Energy 82/100 System Corruption 1% Temperature Critical (563) Movement Core (1500) Ox29 Location -9/Storage Parts ------- > --- POWER (1) -------- (None) > --- PROPULSION (2) --- (None) > --- UTILITY (4) ------ Huge Storage Unit Structural Scanner Terrain Scanner > --- WEAPON (2) ------- Particle Gun Beam Cannon > --- INVENTORY (25) --- Improved Ion Engine Reinforced Ion Engine Light Treads Heat Sink Large Storage Unit Weight Redist. System Hacking Suite EM Shotgun Assault Rifle EMP Blaster Shock Bomb Launcher Shock Bomb Launcher Datajack Hammer Peak State ------------ > --- POWER ------------ Light Nuclear Core > --- PROPULSION ------- Light Treads Improved Treads > --- UTILITY ---------- Improved Heat Sink Large Storage Unit Weight Redist. System Terrain Scanner > --- WEAPON ----------- Beam Rifle Beam Cannon > --- INVENTORY -------- Improved Ion Engine Light Treads Huge Storage Unit Structural Scanner Sensor Array Beam Rifle Particle Gun Beam Cannon Assault Rifle EMP Blaster Shock Bomb Launcher Shock Bomb Launcher Hammer [Rating: 18] Favorites ----------- Power Ion Engine Engine Ion Engine Power Core Light Nuclear Core Propulsion Light Treads Treads Light Treads Leg Aluminum Leg Hover Unit Hover Unit Flight Unit Flight Unit Utility High-capacity Battery Device Terrain Scanner Storage High-capacity Battery Weapon Beam Cannon Energy Gun Beam Rifle Energy Cannon Beam Cannon Ballistic Gun Assault Rifle Build | -11 -10 -9 -9 ------- Run | Yrd Mat Mat Sto Slots Evolved 2 | . . 2 . Power . | . . . . Propulsion . | . . . . Utility 2 | . . 2 . Weapon . | . . . . Parts Attached 40 | 9 9 20 2 Power 6 | 3 . 2 1 Engine 5 | 3 . 1 1 Core 1 | . . 1 . Reactor . | . . . . Propulsion 12 | 2 4 6 . Treads 6 | 2 . 4 . Leg 2 | . 2 . . Wheel . | . . . . Hover 2 | . 2 . . Flight 2 | . . 2 . Utility 13 | 2 3 8 . Device 7 | . . 7 . Storage 6 | 2 3 1 . Processor . | . . . . Hackware . | . . . . Protection . | . . . . Artifact . | . . . . Weapon 9 | 2 2 4 1 Energy Gun 4 | . 1 2 1 Energy Cannon 3 | . 1 2 . Ballistic Gun 2 | 2 . . . Ballistic Cannon . | . . . . Launcher . | . . . . Special Weapon . | . . . . Impact Weapon . | . . . . Slashing Weapon . | . . . . Piercing Weapon . | . . . . Special Melee Weapon . | . . . . Unidentified Prototypes . | . . . . Parts Lost 18 | . 1 11 6 Power 5 | . . 3 2 Propulsion 6 | . 1 3 2 Utility 3 | . . 2 1 Weapon 4 | . . 3 1 Highest Loss Streak 5 | . 1 2 5 To Critical Strikes . | . . . . Average Backups 9 | 3 8 10 14 Power . | . 1 . 2 Propulsion 1 | 1 . 1 . Utility 3 | . 4 3 3 Weapon 4 | . 2 5 6 Tool/Special . | . . . . Unused Backups 21 | . 5 5 11 Power 4 | . . 2 2 Propulsion 4 | . 1 2 1 Utility 7 | . 4 1 2 Weapon 5 | . . . 5 Tool/Special 1 | . . . 1 Average Slot Usage (%) 92 | . 92 91 96 Engine 10 | . 14 8 11 Core 1 | . . 2 . Treads 11 | . 2 15 21 Leg 2 | . 7 . . Hover 3 | . 10 . . Device 16 | . . 24 32 Storage 21 | . 28 19 11 Energy Gun 9 | . 9 9 10 Energy Cannon 9 | . 8 10 11 Ballistic Gun 3 | . 10 . . Peak Build Rating 18 | 7 8 18 13 Average Rating 9 | 5 7 11 12 On Entrance 6 | . 7 7 13 Naked Turns . | . . . . Heaviest Build 96 | 14 24 96 96 Greatest Support 43 | 40 40 43 40 Greatest Overweight (x) 8 | . 3 8 2 Average Overweight (x) 1 | . 1 . 2 Largest Inventory Capacity 25 | 8 15 25 25 Average Capacity 13 | 7 9 15 25 Most Carried 15 | 5 10 15 15 Average Carried 9 | 3 8 10 14 Final Capacity 25 | 8 10 25 25 Final Carried 14 | 5 10 13 14 Class Distribution -------------------- 81% | Mutant 14% | Scavenger-Skirmisher 4% | Scavenger-Mutant Dominant Class ---------------- Mutant | -10/Materials Mutant | -9/Materials Scavenger-Skirmisher | -9/Storage Resources | -11 -10 -9 -9 ----------- Run | Yrd Mat Mat Sto Matter Collected 867 | 375 253 229 10 Remotely . | . . . . Salvage Created 2686 | 160 426 1624 476 Parts 172 | 13 29 101 29 Haulers Intercepted 5 | . 1 4 . Recyclers Shooed 1 | . 1 . . Parts Field Recycled . | . . . . Retrieved Matter . | . . . . Parts Self-Destructed . | . . . . Prevented . | . . . . Kills | -11 -10 -9 -9 ------- Run | Yrd Mat Mat Sto Combat Hostiles Destroyed 57 | . 11 34 12 Guns 32 | . 9 21 2 Cannons 24 | . 2 13 9 Classes Destroyed 11 | 3 4 3 1 Worker 7 | 2 1 3 1 Builder 2 | . . 2 . Tunneler 2 | 2 . . . Hauler 5 | . 1 4 . Recycler 3 | 1 . 1 1 Operator 2 | . . . 2 Watcher 6 | . 1 5 . Swarmer 26 | . 6 13 7 Grunt 19 | . 5 13 1 Brawler 1 | . . 1 . Sentry 11 | . . 7 4 Best Kill Streak 6 | 2 3 4 6 Combat Bots Only 5 | . 3 4 5 Max Kills in Single Turn 1 | 1 1 1 1 Gunslinging . | . . . . Exploded . | . . . . Melee . | . . . . Uniques/NPCs Destroyed . | . . . . Combat | -11 -10 -9 -9 -------- Run | Yrd Mat Mat Sto Hostile Shots Fired 326 | . 67 178 81 Missed 79 | . 21 45 13 Hits 247 | . 46 133 68 Melee 2 | . . 2 . Projectile 245 | . 46 131 68 Critical Strikes 7 | . . 5 2 Damage Taken 2206 | . 345 1160 701 Core 481 | . 62 202 217 Absorbed by Shields . | . . . . Ignored by Resistances 657 | . 114 355 188 Core Remaining (%) 87 | 100 75 . . Volleys Fired 211 | 13 49 114 35 Largest 2 | 2 2 2 2 Hottest 125 | 40 110 116 125 Shots Fired 390 | 26 89 208 67 Gun 244 | 26 76 110 32 Cannon 146 | . 13 98 35 Launcher . | . . . . Special . | . . . . Kinetic 95 | 26 69 . . Thermal 295 | . 20 208 67 Explosive . | . . . . Electromagnetic . | . . . . Robot Hit Streak 22 | 8 22 11 16 Robot Miss Streak 4 | 1 3 4 1 Penetration Max . | . . . . Secondary Targets 2 | . 2 . . Max Gunslinging Chain 1 | . 1 . . Shots Hit Robots 265 | 18 66 131 50 Core Hits 115 | 7 26 63 19 Critical Kills . | . . . . Critical Parts Destroyed . | . . . . Critical Strikes 9 | . . 7 2 Burn 9 | . . 7 2 Melee Attacks . | . . . . Impact . | . . . . Slashing . | . . . . Piercing . | . . . . Sneak Attacks . | . . . . Combat Hostiles . | . . . . Follow-up Attacks . | . . . . Damage Inflicted 3835 | 193 783 2026 833 Guns 2246 | 193 626 1030 397 Cannons 1560 | . 141 983 436 Explosions . | . . . . Melee . | . . . . Ramming 29 | . 16 13 . Kinetic 758 | 193 565 . . Thermal 3048 | . 202 2013 833 Explosive . | . . . . Electromagnetic . | . . . . Impact . | . . . . Slashing . | . . . . Piercing . | . . . . Highest Corruption 1 | . . 1 1 Average Corruption 1 | . . 1 1 Corruption Purged . | . . . . Corruption Blocked . | . . . . Effects 12 | . . 9 3 Matter Fused 1 | . . 1 . Heat Flow Errors 5 | . . 3 2 Energy Discharges 2 | . . 1 1 Parts Rejected 1 | . . 1 . Data Loss (major) 2 | . . 2 . Misfires 1 | . . 1 . Overload Shots . | . . . . Overflow Damage 13 | . . 13 . Projectiles 13 | . . 13 . Explosions . | . . . . Melee . | . . . . Knockbacks 2 | . . 2 . Impact 2 | . . 2 . Kinetic . | . . . . Secondary . | . . . . Self-Inflicted Damage . | . . . . Shots . | . . . . Rammed 3 | . . 3 . Targets Rammed 5 | . 2 3 . Kicked 2 | . 2 . . Crushed . | . . . . Highest Temperature 563 | . 358 430 563 Average Temperature 124 | . 119 97 199 Received Heat Transfer 750 | . 99 408 243 Effects 12 | . . 5 7 Shutdowns 6 | . . 2 4 Interference 1 | . . 1 . Short Circuit 4 | . . 2 2 Damage (core) 1 | . . . 1 Siege Activations . | . . . . Martial Activations . | . . . . Shielding Activations . | . . . . Robots Disrupted . | . . . . Combat Hostiles . | . . . . Robots Corrupted . | . . . . Combat Hostiles . | . . . . Parts Fried . | . . . . Impact Corruptions . | . . . . Robots Melted 1 | . . . 1 Combat Hostiles 1 | . . . 1 Parts Melted 22 | . 2 16 4 Heat Transferred 7807 | . 481 5328 1998 Parts Sabotaged . | . . . . Parts Stolen . | . . . . Parts Stripped . | . . . . Power Chain Reactions . | . . . . Alert | -11 -10 -9 -9 ------- Run | Yrd Mat Mat Sto Maximum Alert Level . | . . . . Low Security (%) 100 | 100 100 100 100 Level 1 . | . . . . Level 2 . | . . . . Level 3 . | . . . . Level 4 . | . . . . Level 5 . | . . . . High Security . | . . . . Max Security . | . . . . Peak Influence 161 | 10 67 152 161 Initial . | . . . . Average 29 | 1 10 41 48 Influence Increases 1608 | 25 293 969 321 Destroy 0b10 Robot/C 1140 | . 220 680 240 Destroy 0b10 Robot/NC 135 | 25 15 75 20 Destroy Leader 292 | . 54 178 60 Successful Hack 10 | . 4 6 . Disable Machine 27 | . . 27 . Destroy Structure 4 | . . 3 1 Influence Decreases 1457 | 25 293 969 170 Time Decay 1297 | 25 283 879 110 Lost Part 160 | . 10 90 60 Squads Dispatched 6 | . 1 4 1 Investigation 1 | . 1 . . Extermination . | . . . . Reinforcement 5 | . . 4 1 Assault . | . . . . Garrison . | . . . . Intercept . | . . . . Searches Triggered . | . . . . Construction Impeded . | . . . . Haulers Reinforced . | . . . . Active Scanning Responses . | . . . . Cargo Convoy Interrupts . | . . . . Stealth | -11 -10 -9 -9 --------- Run | Yrd Mat Mat Sto Distress Signals 2 | . 1 1 . Communications Jammed . | . . . . Distress Signals . | . . . . Times Spotted 77 | . 15 48 14 Peak Tracking Total 5 | . 4 4 5 Tactical Retreats . | . . . . Traps | -11 -10 -9 -9 ------- Run | Yrd Mat Mat Sto Traps Triggered 4 | . 1 3 . Indirectly . | . . . . Trap Hack Attempts . | . . . . Triggered . | . . . . Disarmed . | . . . . Reprogrammed . | . . . . Reused . | . . . . Traps Extracted . | . . . . Installed . | . . . . Triggered . | . . . . Machines | -11 -10 -9 -9 ---------- Run | Yrd Mat Mat Sto Machines Disabled 3 | . . 3 . Max in Single Turn 1 | . . 1 . Machines Repaired . | . . . . Machines Dismantled . | . . . . Machines Sabotaged . | . . . . Overloaded Fab Kills . | . . . . Hacking | -11 -10 -9 -9 --------- Run | Yrd Mat Mat Sto Machines Accessed 3 | . 2 1 . Terminals 2 | . 1 1 . Fabricators . | . . . . Repair Stations . | . . . . Recycling Units 1 | . 1 . . Scanalyzers . | . . . . Garrison Access . | . . . . Total Hacks 7 | . 5 2 . Successful 6 | . 4 2 . Failed 1 | . 1 . . Catastrophic . | . . . . Database Lockouts . | . . . . Manual 2 | . 2 . . Terminals 5 | . 3 2 . Fabricators . | . . . . Repair Stations . | . . . . Recycling Units 2 | . 2 . . Scanalyzers . | . . . . Garrison Access . | . . . . Terminal Hacks 4 | . 2 2 . Branch Access Points 1 | . . 1 . Emergency Access Points 1 | . . 1 . Dispatch Records 1 | . 1 . . Zone Layout 1 | . 1 . . Fabricator Hacks . | . . . . Repair Station Hacks . | . . . . Recycling Unit Hacks . | . . . . Scanalyzer . | . . . . Garrison Access Hacks . | . . . . Unauthorized Hacks 2 | . 2 . . Terminals . | . . . . Fabricators . | . . . . Repair Stations . | . . . . Recycling Units 2 | . 2 . . Reject 1 | . 1 . . Mask 1 | . 1 . . Scanalyzers . | . . . . Garrison Access . | . . . . Data Cores Recovered . | . . . . Used . | . . . . Hacking Detections 1 | . 1 . . Full Trace Events 1 | . 1 . . Feedback Events . | . . . . Feedback Blocked . | . . . . Robot Schematics Acquired . | . . . . Robots Built . | . . . . Authchips . | . . . . Time . | . . . . Total Robot Build Rating . | . . . . Part Schematics Acquired . | . . . . Parts Built . | . . . . Authchips . | . . . . Time . | . . . . Total Part Build Rating . | . . . . Parts Repaired . | . . . . Time . | . . . . Parts Recycled . | . . . . Recycled Matter . | . . . . Retrieved Matter . | . . . . Retrieved Components . | . . . . Parts Scanalyzed . | . . . . Part Schematics Acquired . | . . . . Parts Damaged . | . . . . Bothacking | -11 -10 -9 -9 ------------ Run | Yrd Mat Mat Sto Used RIF Installer . | . . . . Robots Hacked . | . . . . Non-combat . | . . . . Combat . | . . . . Robot Hacks Applied . | . . . . Relay Couplers Released . | . . . . Fabnet Peak Effective % . | . . . . Robots Rewired . | . . . . Allies Hacked . | . . . . Hacks Repelled . | . . . . Allies | -11 -10 -9 -9 -------- Run | Yrd Mat Mat Sto Total Allies . | . . . . Largest Group . | . . . . Highest-Rated Group . | . . . . Highest-Rated Ally . | . . . . Total Orders . | . . . . Ally Attacks . | . . . . Total Damage . | . . . . Kills . | . . . . Allies Corrupted . | . . . . Allies Melted . | . . . . Intel | -11 -10 -9 -9 ------- Run | Yrd Mat Mat Sto Active Infowar (turns) 2724 | . . 2393 331 Sensors 925 | . . 620 305 Terrain 2375 | . . 2046 329 Structural 739 | . . 408 331 Seismic 1416 | . . 1416 . Robot Analysis Total . | . . . . Derelict Logs Recovered . | . . . . Drone Launches . | . . . . Drone Recoveries . | . . . . Exploration | -11 -10 -9 -9 ------------- Run | Yrd Mat Mat Sto Turns Passed 4511 | 229 1549 2403 330 Spaces Moved 1927 | 111 803 948 65 Core 26 | 15 . 11 . Treads 1133 | 96 51 921 65 Legs 302 | . 302 . . Wheels . | . . . . Hover 457 | . 450 7 . Flight 9 | . . 9 . Fastest Speed 50 | 50 116 160 320 Average Speed 194 | 145 170 212 320 Slowest Speed 520 | 160 240 520 320 Overloaded Moves . | . . . . Propulsion Burnouts . | . . . . Robots Hopped . | . . . . Potential Cave-ins . | . . . . Cave-ins Triggered . | . . . . Exploration Rate (%) 42 | 6 87 63 13 Regions Visited 3 Branch Regions 1 Pre-discovered Areas . | . . . . Known Exits Taken 1 | . . 1 . Unknown Exits Taken 2 | 1 1 . . Scrap Searched . | . . . . Spaces Dug . | . . . . Terrain Destroyed . | . . . . Melee . | . . . . Projectile . | . . . . AOE . | . . . . Terrain Rammed . | . . . . Walls Destroyed . | . . . . Machines Disabled . | . . . . Actions | -11 -10 -9 -9 --------- Run | Yrd Mat Mat Sto Total 2308 | 155 902 1128 123 Wait 33 | 9 5 1 18 Move 1924 | 110 802 947 65 Hop . | . . . . Pick Up 62 | 13 18 28 3 Fast Attach 2 | . 1 1 . Attach 30 | 7 3 18 2 Detach . | . . . . Swap 14 | 2 7 5 . Drop 27 | 1 15 11 . Fire 211 | 13 49 114 35 Melee . | . . . . Ram . | . . . . Kick 2 | . 2 . . Crush 3 | . . 3 . Escape Stasis . | . . . . Rewire . | . . . . Trap . | . . . . Miscellaneous . | . . . . Route ------- -11/Scrapyard -10/Materials (discovered 5 exits: *Mat x3 / [*Min x2]) -9/Materials (discovered 5 exits: [*Mat x2] / *Min / *Sto x2) -9/Storage History --------- Turn | Location | Event 7 | -11/Scrapyard | Discovered new exit (range 15) 230 | -11/Scrapyard | Entered Materials 237 | -10/Materials | Discovered new exit (range 9) 307 | -10/Materials | Build established: Mutant 386 | -10/Materials | Met 8R-AWN 546 | -10/Materials | Discovered new exit (range 10) 601 | -10/Materials | Discovered new exit (range 8) 815 | -10/Materials | Discovered new exit (range 16) 930 | -10/Materials | Derelicts attacked the area 1020 | -10/Materials | Discovered new exit (range 15) 1779 | -10/Materials | Entered another Materials area 1779 | -9/Materials | Evolved 2 slots: Utility x2 2291 | -9/Materials | Discovered new exit (range 8) 2821 | -9/Materials | Identified exit to Mines 2821 | -9/Materials | Identified exit to Storage 3079 | -9/Materials | Discovered new exit (range 4) 3323 | -9/Materials | Discovered new exit (range 15) 3817 | -9/Materials | Core integrity fell below 50% 4126 | -9/Materials | Build established: Scavenger-Skirmisher 4182 | -9/Materials | Entered Storage 4488 | -9/Storage | Core integrity fell below 20% 4513 | -9/Storage | Core destroyed Last Messages --------------- Y-45 Defender suffers critical hit (Burn). Power failure, Ion Engine shutdown. Broken Lgt. Treads destroyed. Y-45 Defender heat damages core (-4). Imp. Ion Engine melted. R-06 Scavenger collects Lgt. Treads. Power failure, Ion Engine shutdown. R-06 Scavenger inserts Lgt. Assault Rifle into recycling unit. Recycling unit begins recycling process. R-06 Scavenger collects Beam Rifle. Terrain Scanner broken. Overheating: Short circuit. Ion Engine destroyed. R-06 Scavenger inserts Lgt. Armor Plating into recycling unit. Imp. Ion Engine melted. Hvy. Assault Rifle melted. Y-45 Defender destroyed. Overheating: Core damaged (-60). Map ----- +----------------------------------------------------+ | ?????????????????????????????????????????????????? | | ?????????????????????????????????????????????????? | | ?????????????????????????????????????????????????? | | ?????????????????????????????????????????????????? | | ?????????????????????????????????????????????????? | | ?????????????????????????????????????????????????? | | ?????????????????????????????????????????????????? | | ?????????????????????????????????????????????????? | | ?????????????????????????????????????????????????? | | ?????????????????????????????????????????????????? | | ?????????????????????????????????????????????????? | | ?????????????????????????????????????????????????? | | ??????????????????????????#####??????????????????? | | ??????????????????????????? ####?????????????????? | | ??????????????????????????? ##? ???????????????? | | ???????????????????????##"" ##?????????????????? | | ??????????????????#???? #"Y ##???????????####### | | ??????????????? ???? ?? #""r # ???????????####### | | ????????????????? ? ?? / # ??????????? # | | ??????????????????????? #% + ????????????? ^ # | | ???????????????????????## # ???? ??????? # | | ???????????? ???????? ?## # ? ??#???????## # | | ???????????????????????##%""" ##????????#??### + | | ???????????? ???????? ?##%%"" # ?????? ???#?## # | | ????????????????????? ##r "" # ? ???##?## # | | ???????????????????????##@!!%!# ?????? ??##?## # | | ????????????? ? ?"?" ? ###+### ###### # | | ?????????????????????? #### #####+##+######### # | | ??????????????? ???"?????##% | | ?????????????????????? ??##% % | | ???????????????????????#?##% % | | ???????????????????????#?## %% ####+############ | | ??????????????????????##### # ##### | | ??????????????????????## + ????#?### "" | | ????????????????? ???## # """???????## "" | | ??????????????????????## # "?????????## "" | | ??????????????????????## + ? ???"???### | | ??????????????????????############ ?????"????## "" | | ??????????????????????############ ????"????## "" | | ????????????????????????????#?????? ???????#?## "" | | ?????????????????????#???#??????#?? ??????## | | ??????????????????????????#???????#####??#????#### | | | | | | | | | | | | | | | | | +----------------------------------------------------+ Best States ------------- Heat Dissipation 42 Energy Generation 14 Energy Capacity 500 Matter Stores 350 Matter Capacity 350 Sight Range 16 Robot Scan Range 14 Terrain Scan Range 14 Terrain Scan Density 10 Resistance: KI 20 Resistance: TH 20 Resistance: EX 20 Resistance: EM 20 Resistance: I 20 Resistance: S 20 Resistance: P 20 Evasion (%) 55 Recoil Reduction 2 Offensive Hacking 10 Item Schematics ----------------- None Robot Schematics ------------------ None Fabricated ------------ Nothing Repaired ---------- Nothing Alien Tech Used ----------------- None Achievements -------------- True Hacker Challenges ------------ None Game ------ Seed CompanionPersonalStreamer Manual? 0 Play Time 00:47:54 Cumulative 28.4 hours Start 2025.09.02 @ 20:58:12 End 2025.09.02 @ 21:54:18 Sessions 1 Manual Loads 0 Difficulty Adventurer Special Mode None Game No. 16 Rogue 0 Adventurer 16 Explorer 0 Win Type - Total 0 Types 0/0/0/0/0/0/0/0/0/0 Lore% 11 Gallery% 20 Achievement% 20 Wizard Run 0 Options --------- Layout 1 ASCII 0 Keyboard 0 Movement Mouse Keybinds 0 Fullscreen 1 Font 32/SmallcapsGlow Map View 50x35 Zoom Use 0% Tactical HUD 0 Map Filters NONE Filters NONE Steam 1 RUN: f51cb8e8-838f-4009-94a5-179c1cceae6e